[Event "German Bundesliga 2023-24"]
[Site "Germany"]
[Date "2024.02.24"]
[Round "10.1"]
[White "Kadric, Denis"]
[Black "Santos Latasa, Jaime"]
[Result "0-1"]
[ECO "B86"]
[WhiteElo "2579"]
[BlackElo "2615"]
[Annotator "TA"]
[PlyCount "72"]
[EventDate "2023.10.20"]
[EventType "team-tourn"]
[EventCountry "GER"]
[SourceTitle "playchess.com"]
[Source "ChessBase"]
[SourceQuality "1"]
[TimeControl "40/6000+30:3000+30"]

{[%evp 12,72,0,0,14,0,0,0,0,-20,-45,-40,-48,-58,-53,-86,-77,-87,-74,-76,-88,-70,-104,-108,-102,-104,-88,-85,-86,-79,-80,-81,-67,-63,-56,-59,-53,-65,-10,-70,0,-75,-74,-144,-141,-140,-130,-150,-150,-150,-141,-177,-176,-277,-281,-693,-411,-372,-405,-634,-201,-29996,-106]} 1. e4 {[%emt 0:00:02]} c5 {[%emt 0:00:06]} 2. Nf3 {[%emt 0:01:16]} d6 {[%emt 0:00:16]} 3. d4 {[%emt 0:00:04]} cxd4 {[%emt 0:00:04]} 4. Nxd4 {[%emt 0:00:03]} Nf6 {[%emt 0:00:09]} 5. Nc3 {[%emt 0:00:01]} a6 {[%emt 0:00:06]} 6. Bc4 {[%emt 0:01:44]} e6 {[%emt 0:00:39]} 7. Be3 {[%emt 0:00:15]} Qc7 {[%emt 0:00:54]} 8. Qe2 {[%emt 0:13:08]} b5 {[%emt 0:06:04]} 9. Bb3 {[%emt 0:00:03]} Nbd7 {[%emt 0:04:27] The position is equal.} 10. Bxe6 {[%emt 0:38:18]} fxe6 {[%emt 0:00:42]} 11. Nxe6 {[%emt 0:00:03]} Qb8 {[%emt 0:20:44]} 12. Nd5 {[%emt 0:08:31]} Nxd5 {[%emt 0:01:07]} 13. exd5 {[%emt 0:07:29][%cal Oe6c7] [#] Threatens to win with Nc7+!} Nf6 {[%emt 0:04:32]} 14. Bd4 {[%emt 0:22:33]} Bxe6 {[%emt 0:01:39]} 15. Qxe6+ {[%emt 0:00:02]} Be7 {[%emt 0:00:16]} 16. Bxf6 {[%emt 0:01:50]} gxf6 {[%emt 0:00:16]} 17. O-O-O {[%emt 0:00:01]} Qc8 {[%emt 0:00:24]} 18. Qe2 {[%emt 0:00:01]} Ra7 {[%emt 0:08:20]} 19. Qh5+ {[%emt 0:01:17]} Kd8 {[%emt 0:01:45]} 20. Rhe1 {[%emt 0:00:02]} Qc4 {[%emt 0:01:44]} 21. Kb1 {[%emt 0:00:08]} Rc7 {[%emt 0:03:10]} 22. Qf5 {[%emt 0:05:32]} Qh4 {[%emt 0:04:59]} (22... Re8 {feels hotter.} 23. a3 a5 24. g3 b4) 23. g3 {[%emt 0:01:42]} Qg5 {[%emt 0:00:55]} (23... Qxh2 24. Rh1 Qg2 25. Rdg1 $18 (25. Rxh7 $2 Rxh7 26. Qxh7 Qxf2 $19) (25. Rxh7 $2 Rxh7 26. Qxh7 Qxf2 $19)) 24. Qf3 {[%emt 0:00:03]} Kc8 {[%emt 0:01:55]} (24... Re8 $15 25. Re6 Qg6) 25. Rd4 {[%emt 0:00:24]} (25. a4 $11) 25... Qg6 {[%emt 0:04:19]} (25... Kb8 $1 $15) 26. Qb3 {[%emt 0:01:08]} (26. Rde4 $11 {keeps the balance.}) 26... Bd8 $17 {[%emt 0:03:59]} 27. Rde4 {[%emt 0:02:59] Prevents Re8.} (27. Re6 $142) 27... Qf5 {[%emt 0:00:54]} 28. Rf4 {[%emt 0:03:33]} Qh5 {[%emt 0:03:48][%cal Oh8e8]} 29. a4 {[%emt 0:02:02]} Re8 {[%emt 0:01:05]} (29... Qxh2 30. axb5 a5 31. Qa3 $14) 30. Rxe8 {[%emt 0:00:36]} Qxe8 {[%emt 0:00:07]} 31. axb5 {[%emt 0:00:03]} axb5 {[%emt 0:02:07] And now ...Qe1+ would win.} 32. Qa3 {[%emt 0:00:15]} (32. Qe3 {was the only defense.} Qxe3 33. fxe3) 32... Qe2 $19 {[%emt 0:08:50]} 33. Qa8+ {[%emt 0:00:03]} (33. Qd3 {was worth a try.} Qxd3 34. cxd3) 33... Kd7 {[%emt 0:00:07]} 34. c3 {[%emt 0:00:01]} f5 {[%emt 0:00:54] Strongly threatening ...Bf6.} 35. g4 {[%emt 0:01:42] [#]} (35. Qa6 $142) 35... Rxc3 $2 {[%emt 0:04:06]} 36. Rxf5 $2 {[%emt 0:01:02]} (36. bxc3 $19 Qd1+ (36... fxg4 37. Qb7+ Bc7 38. Qc6+ Ke7 39. Qxc7+ Ke8 40. Qc8+ Ke7 41. Qf8+ Kd7 42. Rf7+) 37. Kb2 Qd2+ (37... fxg4 38. Qc6+ Ke7 39. Qb7+) 38. Kb3 Qxf4 39. Qb7+ Bc7 40. Qxb5+ Kd8 41. Qc6) 36... Qf1+ {[%emt 0:00:08] Weighted Error Value: White=0.64/Black=0.34.  Mistake:       	White=7     	Black=3      Inaccurate:     	White=1     	Black=1      OK:         	White=10    	Black=10     Best:        	White=1     	Black=4} 0-1

[Event "German Bundesliga 2023-24"]
[Site "Germany"]
[Date "2024.02.24"]
[Round "10.2"]
[White "Huschenbeth, Niclas"]
[Black "Brkic, Ante"]
[Result "1/2-1/2"]
[ECO "B90"]
[WhiteElo "2605"]
[BlackElo "2606"]
[Annotator "RC"]
[PlyCount "146"]
[EventDate "2023.10.20"]
[EventType "team-tourn"]
[EventCountry "GER"]
[SourceTitle "playchess.com"]
[Source "ChessBase"]
[SourceQuality "1"]
[TimeControl "40/6000+30:3000+30"]

1. e4 {[%emt 0:00:03]} c5 {[%emt 0:00:05]} 2. Nf3 {[%emt 0:00:06]} d6 {[%emt 0:00:04]} 3. d4 {[%emt 0:00:07]} cxd4 {[%emt 0:00:04]} 4. Nxd4 {[%emt 0:00:06]} Nf6 {[%emt 0:00:06]} 5. Nc3 {[%emt 0:00:07]} a6 {[%emt 0:00:03]} 6. Be3 {[%emt 0:00:20]} e5 {[%emt 0:00:51]} 7. Nb3 {[%emt 0:00:06]} Be7 {[%emt 0:02:31]} 8. f3 {[%emt 0:00:29]} Be6 {[%emt 0:00:26]} 9. Qd2 {[%emt 0:00:26]} O-O {[%emt 0:00:08]} 10. O-O-O {[%emt 0:00:26]} Nbd7 {[%emt 0:00:05]} 11. g4 {[%emt 0:00:50]} b5 {[%emt 0:00:04]} 12. g5 {[%emt 0:00:22]} Nh5 {[%emt 0:00:52]} 13. Kb1 {[%emt 0:00:37]} Nb6 {[%emt 0:03:20]} 14. Na5 {[%emt 0:01:51]} Rc8 {[%emt 0:00:17]} 15. Nd5 {[%emt 0:00:45]} Nxd5 {[%emt 0:02:50]} 16. exd5 {[%emt 0:00:06]} Bxd5 {[%emt 0:00:04]} 17. Qxd5 {[%emt 0:00:09]} Qxa5 {[%emt 0:00:04]} 18. c4 {[%emt 0:00:11]} Nf4 {[%emt 0:01:54]} 19. Bxf4 {[%emt 0:01:47]} exf4 {[%emt 0:00:01]} 20. h4 {[%emt 0:00:12]} Qa4 {[%emt 0:06:29]} 21. Rc1 {[%emt 0:00:20]} Rfe8 {[%emt 0:11:56]} 22. Bd3 {[%emt 0:02:24]} Rc5 {[%emt 0:04:38]} 23. Qe4 {[%emt 0:00:48]} g6 {[%emt 0:00:29]} 24. h5 {[%emt 0:01:26]} Re5 {[%emt 0:19:59]} 25. Qb7 {[%emt 0:00:40]} bxc4 {[%emt 0:09:20]} 26. Bxc4 {[%emt 0:01:02]} Rd8 {[%emt 0:02:10]} 27. hxg6 {[%emt 0:00:35]} hxg6 {[%emt 0:00:06]} 28. Bxf7+ {[%emt 0:00:44]} Kxf7 {[%emt 0:00:15]} 29. Rh7+ {[%emt 0:00:08]} Kf8 {[%emt 0:04:08]} 30. Rh8+ {[%emt 0:02:53]} Kf7 {[%emt 0:00:09]} 31. Rxd8 {[%emt 0:00:23]} Rb5 {[%emt 0:00:56]} 32. Qa7 {[%emt 0:00:41]} Qb4 {[%emt 0:02:24]} 33. b3 {[%emt 0:00:08]} Rb7 {[%emt 0:00:46]} 34. Qa8 {[%emt 0:00:07]} Bxd8 {[%emt 0:02:09]} 35. Qxd8 {[%emt 0:00:06]} Qd4 {[%emt 0:01:35]} 36. Qc8 {[%emt 0:00:22]} Qd3+ {[%emt 0:06:39]} 37. Kb2 {[%emt 0:00:27]} Qd4+ {[%emt 0:05:27]} 38. Rc3 {[%emt 0:00:11]} Rb5 {[%emt 0:15:19]} 39. Qxa6 {[%emt 0:00:10]} Qd2+ {[%emt 0:06:03]} 40. Ka3 {[%emt 0:00:27]} Rxg5 {[%emt 0:00:56]} 41. Qc4+ {[%emt 1:26:01]} Kf6 {[%emt 0:51:16]} 42. Rc2 {[%emt 0:04:48]} Qe3 {[%emt 0:00:00]} 43. Qc7 {[%emt 0:00:00]} Rd5 {[%emt 0:00:00]} 44. Qd8+ {[%emt 0:01:44]} Qe7 {[%emt 0:00:00]} 45. Qxe7+ {[%emt 0:12:58]} Kxe7 {[%emt 0:00:00]} 46. Kb4 {[%emt 0:00:39]} Rd3 {[%emt 0:00:00]} 47. a4 {[%emt 0:17:54]} Rxf3 {[%emt 0:00:00]} 48. a5 {[%emt 0:00:04]} Rh3 {[%emt 0:00:00]} 49. a6 {[%emt 0:00:47]} f3 {[%emt 0:00:00]} 50. Rc8 {[%emt 0:16:56]} Rh4+ {[%emt 0:00:00]} 51. Kb5 {[%emt 0:00:08]} Rh5+ {[%emt 0:01:08]} 52. Kb6 {[%emt 0:01:22]} Rc5 {[%emt 0:00:55]} 53. Rh8 {[%emt 0:04:34]} Rh5 {[%emt 0:02:24]} 54. Rc8 {[%emt 0:01:40]} Rc5 {[%emt 0:00:14]} 55. Rxc5 {[%emt 0:00:47]} dxc5 {[%emt 0:00:06]} 56. a7 {[%emt 0:00:02]} f2 {[%emt 0:00:06]} 57. a8=Q {[%emt 0:00:04]} f1=Q {[%emt 0:00:14]} 58. Qe4+ {[%emt 0:00:52]} Kf6 {[%emt 0:02:25]} 59. Qc6+ {[%emt 0:00:26]} Kg5 {[%emt 0:01:15]} 60. Qxc5+ {[%emt 0:00:16]} Kh4 {[%emt 0:00:27]} 61. Qd4+ {[%emt 0:00:57]} Kh5 {[%emt 0:00:34]} 62. b4 {[%emt 0:01:27]} g5 {[%emt 0:00:09]} 63. Qh8+ {[%emt 0:00:38]} Kg4 {[%emt 0:00:30]} 64. b5 {[%emt 0:00:48]} Kg3 {[%emt 0:00:48]} 65. Qb8+ {[%emt 0:01:47]} Qf4 {[%emt 0:01:45]} 66. Ka7 {[%emt 0:00:51]} Qxb8+ {[%emt 0:00:24]} 67. Kxb8 {[%emt 0:00:06]} g4 {[%emt 0:00:03]} 68. b6 {[%emt 0:00:06]} Kf2 {[%emt 0:00:13]} 69. b7 {[%emt 0:00:04]} g3 {[%emt 0:00:03]} 70. Kc7 {[%emt 0:00:08]} g2 {[%emt 0:00:03]} 71. b8=Q {[%emt 0:00:05]} g1=Q {[%emt 0:00:06]} 72. Qa7+ {[%emt 0:00:03]} Kg2 {[%emt 0:00:04]} 73. Qxg1+ {[%emt 0:00:04]} Kxg1 {[%emt 0:00:02]} 1/2-1/2

[Event "German Bundesliga 2023-24"]
[Site "Germany"]
[Date "2024.02.24"]
[Round "10.3"]
[White "Predojevic, Borki"]
[Black "Idani, Pouya"]
[Result "1/2-1/2"]
[ECO "A13"]
[WhiteElo "2580"]
[BlackElo "2633"]
[Annotator "RC"]
[PlyCount "41"]
[EventDate "2023.10.20"]
[EventType "team-tourn"]
[EventCountry "GER"]
[SourceTitle "playchess.com"]
[Source "ChessBase"]
[SourceQuality "1"]
[TimeControl "40/6000+30:3000+30"]

1. Nf3 {[%emt 0:00:02]} Nf6 {[%emt 0:01:29]} 2. c4 {[%emt 0:02:06]} e6 {[%emt 0:00:05]} 3. g3 {[%emt 0:00:18]} d5 {[%emt 0:00:55]} 4. Bg2 {[%emt 0:00:37]} dxc4 {[%emt 0:01:32]} 5. Qa4+ {[%emt 0:02:18]} Bd7 {[%emt 0:00:05]} 6. Qxc4 {[%emt 0:00:14]} c5 {[%emt 0:00:04]} 7. Ne5 {[%emt 0:07:07]} Qc8 {[%emt 0:00:51]} 8. Qd3 {[%emt 0:00:29]} Nc6 {[%emt 0:00:07]} 9. Nxd7 {[%emt 0:00:07]} Nxd7 {[%emt 0:00:04]} 10. b3 {[%emt 0:00:24]} Be7 {[%emt 0:00:34]} 11. Bb2 {[%emt 0:00:07]} O-O {[%emt 0:01:10]} 12. Nc3 {[%emt 0:00:19]} Rd8 {[%emt 0:06:18]} 13. Rd1 {[%emt 0:01:12]} Nf6 {[%emt 0:08:37]} 14. Qb1 {[%emt 0:00:20]} Qc7 {[%emt 0:00:17]} 15. O-O {[%emt 0:06:57]} Rd7 {[%emt 0:03:29]} 16. d3 {[%emt 0:18:12]} h5 {[%emt 0:13:31]} 17. e3 {[%emt 0:04:56]} h4 {[%emt 0:03:40]} 18. d4 {[%emt 0:00:44]} cxd4 {[%emt 0:05:17]} 19. Nb5 {[%emt 0:00:07]} Qa5 {[%emt 0:00:19]} 20. Nxd4 {[%emt 0:00:10]} hxg3 {[%emt 0:08:47]} 21. hxg3 {[%emt 0:00:08]} 1/2-1/2

[Event "German Bundesliga 2023-24"]
[Site "Germany"]
[Date "2024.02.24"]
[Round "10.4"]
[White "Santos Ruiz, Miguel"]
[Black "Markus, Robert"]
[Result "1/2-1/2"]
[ECO "C15"]
[WhiteElo "2593"]
[BlackElo "2582"]
[Annotator "ChessBase"]
[PlyCount "41"]
[EventDate "2023.10.20"]
[EventType "team-tourn"]
[EventCountry "GER"]
[SourceTitle "playchess.com"]
[Source "ChessBase"]
[SourceQuality "1"]
[TimeControl "40/6000+30:3000+30"]

1. e4 {[%emt 0:00:04]} e6 {[%emt 0:00:06]} 2. d4 {[%emt 0:00:04]} d5 {[%emt 0:00:08]} 3. Nc3 {[%emt 0:00:03]} Bb4 {[%emt 0:00:09]} 4. Nge2 {[%emt 0:00:04]} dxe4 {[%emt 0:08:40]} 5. a3 {[%emt 0:00:12]} Be7 {[%emt 0:00:31]} 6. Nxe4 {[%emt 0:00:09]} Bd7 {[%emt 0:01:24]} 7. Qd3 {[%emt 0:05:59]} Bc6 {[%emt 0:01:39]} 8. Bf4 {[%emt 0:01:35]} Nd7 {[%emt 0:03:57]} 9. O-O-O {[%emt 0:15:03]} Ngf6 {[%emt 0:05:04]} 10. N2c3 {[%emt 0:12:20]} Nxe4 {[%emt 0:13:25]} 11. Nxe4 {[%emt 0:00:07]} Bxe4 {[%emt 0:00:06]} 12. Qxe4 {[%emt 0:00:04]} c6 {[%emt 0:00:07]} 13. Kb1 {[%emt 0:14:14]} Qa5 {[%emt 0:07:18]} 14. Bc1 {[%emt 0:11:42]} Rd8 {[%emt 0:05:21]} 15. h4 {[%emt 0:04:34]} Nf6 {[%emt 0:03:47]} 16. Qf3 {[%emt 0:00:13]} Qd5 {[%emt 0:04:38]} 17. Be2 {[%emt 0:00:18]} Qxf3 {[%emt 0:01:15]} 18. Bxf3 {[%emt 0:00:05]} h5 {[%emt 0:00:07]} 19. Rhe1 {[%emt 0:03:01]} Nd5 {[%emt 0:06:50]} 20. g3 {[%emt 0:01:37]} b5 {[%emt 0:00:06]} 21. Bg5 {[%emt 0:08:01]} 1/2-1/2

[Event "German Bundesliga 2023-24"]
[Site "Germany"]
[Date "2024.02.24"]
[Round "10.5"]
[White "Stevic, Hrvoje"]
[Black "Dragnev, Valentin"]
[Result "1/2-1/2"]
[ECO "C47"]
[WhiteElo "2549"]
[BlackElo "2586"]
[Annotator "RC"]
[PlyCount "45"]
[EventDate "2023.10.20"]
[EventType "team-tourn"]
[EventCountry "GER"]
[SourceTitle "playchess.com"]
[Source "ChessBase"]
[SourceQuality "1"]
[TimeControl "40/6000+30:3000+30"]

1. e4 {[%emt 0:00:04]} e5 {[%emt 0:00:12]} 2. Nf3 {[%emt 0:00:12]} Nf6 {[%emt 0:00:05]} 3. Nc3 {[%emt 0:03:07]} Nc6 {[%emt 0:00:38]} 4. d4 {[%emt 0:02:39]} exd4 {[%emt 0:01:27]} 5. Nxd4 {[%emt 0:00:08]} Bb4 {[%emt 0:03:46]} 6. Nxc6 {[%emt 0:00:25]} bxc6 {[%emt 0:00:06]} 7. Bd3 {[%emt 0:00:06]} d5 {[%emt 0:03:56]} 8. Bd2 {[%emt 0:05:09]} O-O {[%emt 0:00:54]} 9. O-O {[%emt 0:00:33]} Bxc3 {[%emt 0:09:10]} 10. Bxc3 {[%emt 0:00:11]} dxe4 {[%emt 0:00:22]} 11. Bxf6 {[%emt 0:05:54]} Qxf6 {[%emt 0:00:37]} 12. Bxe4 {[%emt 0:00:07]} Qxb2 {[%emt 0:00:08]} 13. Bxc6 {[%emt 0:00:09]} Rb8 {[%emt 0:00:11]} 14. Rb1 {[%emt 0:00:13]} Qxb1 {[%emt 0:00:08]} 15. Qxb1 {[%emt 0:00:05]} Rxb1 {[%emt 0:00:10]} 16. Rxb1 {[%emt 0:00:05]} Rd8 {[%emt 0:00:34]} 17. Kf1 {[%emt 0:04:55]} Kf8 {[%emt 0:03:32]} 18. Rb3 {[%emt 0:02:33]} Be6 {[%emt 0:04:49]} 19. Ra3 {[%emt 0:03:32]} Rd2 {[%emt 0:02:20]} 20. Be4 {[%emt 0:01:26]} Bc4+ {[%emt 0:00:19]} 21. Bd3 {[%emt 0:00:09]} Rxc2 {[%emt 0:00:11]} 22. Bxc4 {[%emt 0:00:09]} Rxc4 {[%emt 0:00:04]} 23. Ke2 {[%emt 0:00:04]} 1/2-1/2

[Event "German Bundesliga 2023-24"]
[Site "Germany"]
[Date "2024.02.24"]
[Round "10.6"]
[White "Georgiadis, Nico"]
[Black "Jovanovic, Zoran"]
[Result "1/2-1/2"]
[ECO "C41"]
[WhiteElo "2563"]
[BlackElo "2513"]
[Annotator "RC"]
[PlyCount "46"]
[EventDate "2023.10.20"]
[EventType "team-tourn"]
[EventCountry "GER"]
[SourceTitle "playchess.com"]
[Source "ChessBase"]
[SourceQuality "1"]
[TimeControl "40/6000+30:3000+30"]

1. e4 {[%emt 0:00:04]} d6 {[%emt 0:00:06]} 2. d4 {[%emt 0:00:06]} Nf6 {[%emt 0:00:03]} 3. Nc3 {[%emt 0:00:09]} e5 {[%emt 0:00:03]} 4. Nf3 {[%emt 0:00:32]} Nbd7 {[%emt 0:00:09]} 5. Rg1 {[%emt 0:00:18]} g6 {[%emt 0:04:04]} 6. Be3 {[%emt 0:00:55]} Bg7 {[%emt 0:04:51]} 7. dxe5 {[%emt 0:01:44]} dxe5 {[%emt 0:03:02]} 8. g4 {[%emt 0:00:08]} O-O {[%emt 0:07:54]} 9. Qd3 {[%emt 0:01:33]} Nb6 {[%emt 0:15:26]} 10. g5 {[%emt 0:23:35]} Nh5 {[%emt 0:03:35]} 11. Qxd8 {[%emt 0:15:05]} Rxd8 {[%emt 0:04:23]} 12. Nb5 {[%emt 0:13:56]} Bd7 {[%emt 0:01:14]} 13. a4 {[%emt 0:01:51]} Bxb5 {[%emt 0:11:01]} 14. axb5 {[%emt 0:00:21]} Nc8 {[%emt 0:00:05]} 15. Nd2 {[%emt 0:02:57]} Nd6 {[%emt 0:01:42]} 16. f3 {[%emt 0:02:04]} Nf4 {[%emt 0:02:52]} 17. h4 {[%emt 0:01:08]} h6 {[%emt 0:01:28]} 18. Nb3 {[%emt 0:07:21]} b6 {[%emt 0:12:49]} 19. c3 {[%emt 0:03:37]} hxg5 {[%emt 0:12:22]} 20. hxg5 {[%emt 0:00:13]} Nb7 {[%emt 0:00:48]} 21. Nc1 {[%emt 0:09:06]} Nc5 {[%emt 0:04:52]} 22. Bxf4 {[%emt 0:04:02]} exf4 {[%emt 0:00:01]} 23. Ra3 {[%emt 0:05:04]} Rd6 {[%emt 0:01:40]} 1/2-1/2

[Event "German Bundesliga 2023-24"]
[Site "Germany"]
[Date "2024.02.24"]
[Round "10.7"]
[White "Kovacevic, Aleksandar"]
[Black "Bogner, Sebastian"]
[Result "1/2-1/2"]
[ECO "B51"]
[WhiteElo "2445"]
[BlackElo "2536"]
[Annotator "TA"]
[PlyCount "53"]
[EventDate "2023.10.20"]
[EventType "team-tourn"]
[EventCountry "GER"]
[SourceTitle "playchess.com"]
[Source "ChessBase"]
[SourceQuality "1"]
[TimeControl "40/6000+30:3000+30"]

{[%evp 9,53,29,22,10,19,18,12,12,14,17,16,18,16,12,16,10,7,4,0,0,12,-32,-28,-37,-39,-47,-47,-64,0,-62,-19,-24,0,0,0,0,0,0,6,4,4,0,0,0,3,0]} 1. e4 {[%emt 0:00:14]} c5 {[%emt 0:00:06]} 2. Nf3 {[%emt 0:00:11]} d6 {[%emt 0:00:04]} 3. Bb5+ {[%emt 0:04:08]} Nd7 {[%emt 0:00:25]} 4. O-O {[%emt 0:00:13]} a6 {[%emt 0:00:07]} 5. Bd3 {[%emt 0:00:18]} Ngf6 {[%emt 0:00:10]} 6. Re1 {[%emt 0:00:08]} g6 {[%emt 0:01:08]} 7. c3 {[%emt 0:00:49]} Bg7 {[%emt 0:00:19]} 8. Bc2 {[%emt 0:07:00]} O-O {[%emt 0:01:03]} 9. d4 {[%emt 0:00:20]} e5 {[%emt 0:00:12]} 10. dxe5 {[%emt 0:01:13]} Nxe5 {[%emt 0:01:05]} 11. Nxe5 {[%emt 0:05:09]} dxe5 {[%emt 0:00:56]} 12. Qe2 {[%emt 0:05:59]} b5 {[%emt 0:18:59]} 13. a4 {[%emt 0:08:32]} Bd7 {[%emt 0:00:25]} 14. b3 {[%emt 0:07:59]} Qc7 {[%emt 0:01:23]} 15. c4 {[%emt 0:03:19]} b4 {[%emt 0:13:47]} 16. Nd2 {[%emt 0:03:05]} Nh5 {[%emt 0:03:29][%cal Bf6h5,Bh5g7,Bg7e6][%mdl 32]} 17. g3 {[%emt 0:01:29] Inhibits Nf4.} Bh6 {[%emt 0:03:10]} 18. Bb2 {[%emt 0:05:43] [#]} Bg4 {[%emt 0:02:32]} 19. f3 {[%emt 0:19:04]} (19. Qxg4 $11 Bxd2 20. Red1) 19... Bh3 {[%emt 0:17:09]} 20. Nf1 {[%emt 0:01:06]} Bxf1 {[%emt 0:09:45]} 21. Rxf1 {[%emt 0:00:46] The position is equal.} Ng7 {[%emt 0:00:20]} 22. Rad1 {[%emt 0:01:39]} Ne6 {[%emt 0:00:07]} 23. Rd5 {[%emt 0:00:32]} Bg7 {[%emt 0:00:33]} 24. Rfd1 {[%emt 0:01:21]} Rfd8 {[%emt 0:00:07]} 25. Rxd8+ {[%emt 0:01:12]} Rxd8 {[%emt 0:00:30]} 26. Rd5 {[%emt 0:00:46]} a5 {[%emt 0:00:19]} 27. Qd2 {[%emt 0:03:51] Weighted Error Value: White=0.09 (flawless) /Black=0.09 (flawless) .  Mistake:       	White=1     	Black=1      Inaccurate:     	White=1     	Black=1      OK:         	White=8     	Black=9      Best:        	---       	Black=1} 1/2-1/2

[Event "German Bundesliga 2023-24"]
[Site "Germany"]
[Date "2024.02.24"]
[Round "10.8"]
[White "Lokander, Martin"]
[Black "Zelcic, Robert"]
[Result "1-0"]
[ECO "E32"]
[WhiteElo "2462"]
[BlackElo "2476"]
[Annotator "RC"]
[PlyCount "184"]
[EventDate "2023.10.20"]
[EventType "team-tourn"]
[EventCountry "GER"]
[SourceTitle "playchess.com"]
[Source "ChessBase"]
[SourceQuality "1"]
[TimeControl "40/6000+30:3000+30"]

1. d4 {[%emt 0:00:03]} Nf6 {[%emt 0:00:10]} 2. c4 {[%emt 0:00:06]} e6 {[%emt 0:00:04]} 3. Nc3 {[%emt 0:00:04]} Bb4 {[%emt 0:00:03]} 4. Qc2 {[%emt 0:00:17]} O-O {[%emt 0:00:15]} 5. e4 {[%emt 0:00:05]} d5 {[%emt 0:00:02]} 6. e5 {[%emt 0:00:06]} Ne4 {[%emt 0:00:02]} 7. Bd3 {[%emt 0:00:12]} c5 {[%emt 0:00:05]} 8. Nf3 {[%emt 0:00:08]} cxd4 {[%emt 0:00:03]} 9. Nxd4 {[%emt 0:00:07]} f5 {[%emt 0:00:29]} 10. exf6 {[%emt 0:00:18]} Nxf6 {[%emt 0:00:01]} 11. cxd5 {[%emt 0:00:14]} exd5 {[%emt 0:00:01]} 12. O-O {[%emt 0:00:20]} Nc6 {[%emt 0:00:05]} 13. Be3 {[%emt 0:00:04]} Kh8 {[%emt 0:00:04]} 14. Nxc6 {[%emt 0:00:05]} bxc6 {[%emt 0:00:03]} 15. Ne2 {[%emt 0:00:06]} Bd7 {[%emt 0:00:15]} 16. Rac1 {[%emt 0:05:07]} a5 {[%emt 0:01:58]} 17. Bc5 {[%emt 0:04:08]} Bxc5 {[%emt 0:16:26]} 18. Qxc5 {[%emt 0:02:10]} Qb8 {[%emt 0:00:17]} 19. b3 {[%emt 0:11:34]} Ng4 {[%emt 0:00:42]} 20. f4 {[%emt 0:02:21]} a4 {[%emt 0:21:06]} 21. b4 {[%emt 0:07:00]} a3 {[%emt 0:01:00]} 22. Rc3 {[%emt 0:02:58]} h6 {[%emt 0:04:56]} 23. h3 {[%emt 0:19:10]} Nf6 {[%emt 0:00:06]} 24. Bg6 {[%emt 0:04:23]} Ne4 {[%emt 0:12:56]} 25. Bxe4 {[%emt 0:02:24]} dxe4 {[%emt 0:00:02]} 26. f5 {[%emt 0:05:30]} Qe8 {[%emt 0:05:43]} 27. g4 {[%emt 0:01:44]} Qf7 {[%emt 0:10:14]} 28. Nf4 {[%emt 0:01:38]} Kh7 {[%emt 0:00:06]} 29. Rf2 {[%emt 0:03:24]} Rfb8 {[%emt 0:03:58]} 30. Re3 {[%emt 0:01:52]} Rb5 {[%emt 0:06:03]} 31. Qd6 {[%emt 0:01:21]} Re8 {[%emt 0:02:23]} 32. Rd2 {[%emt 0:08:40]} Bxf5 {[%emt 0:01:48]} 33. gxf5 {[%emt 0:00:04]} Rxf5 {[%emt 0:00:01]} 34. Ng2 {[%emt 0:01:49]} Re6 {[%emt 0:04:42]} 35. Qd7 {[%emt 0:03:44]} Rf1+ {[%emt 0:19:24]} 36. Kh2 {[%emt 0:00:15]} Qxd7 {[%emt 0:00:49]} 37. Rxd7 {[%emt 0:00:05]} Rf2 {[%emt 0:00:04]} 38. Kg3 {[%emt 0:13:18]} Rxa2 {[%emt 0:00:44]} 39. Nf4 {[%emt 0:00:06]} Re5 {[%emt 0:00:58]} 40. h4 {[%emt 0:00:42]} Ra1 {[%emt 0:00:47]} 41. Ra7 {[%emt 0:52:43]} a2 {[%emt 0:06:57]} 42. Ng2 {[%emt 0:00:00]} h5 {[%emt 0:11:28]} 43. Rea3 {[%emt 0:00:00]} Rb5 {[%emt 0:10:23]} 44. Rxa2 {[%emt 0:00:00]} Rxa2 {[%emt 0:00:08]} 45. Rxa2 {[%emt 0:00:00]} g5 {[%emt 0:00:17]} 46. hxg5 {[%emt 0:00:00]} Rxg5+ {[%emt 0:00:01]} 47. Kf4 {[%emt 0:00:00]} Rb5 {[%emt 0:00:04]} 48. Ne3 {[%emt 0:00:00]} Rxb4 {[%emt 0:00:09]} 49. Kg5 {[%emt 0:00:00]} Rb7 {[%emt 0:04:22]} 50. Nf5 {[%emt 0:00:00]} c5 {[%emt 0:01:00]} 51. Kf6 {[%emt 0:00:00]} c4 {[%emt 0:02:17]} 52. Rh2 {[%emt 0:00:00]} Rb6+ {[%emt 0:01:13]} 53. Kf7 {[%emt 0:00:00]} Rb7+ {[%emt 0:01:09]} 54. Ke6 {[%emt 0:00:00]} c3 {[%emt 0:02:16]} 55. Nd6 {[%emt 0:00:00]} Rc7 {[%emt 0:00:56]} 56. Rxh5+ {[%emt 0:00:00]} Kg6 {[%emt 0:01:21]} 57. Rh1 {[%emt 0:00:00]} c2 {[%emt 0:00:22]} 58. Rg1+ {[%emt 0:00:00]} Kh5 {[%emt 0:00:28]} 59. Rc1 {[%emt 0:00:00]} e3 {[%emt 0:01:23]} 60. Nf5 {[%emt 0:00:00]} Rc3 {[%emt 0:06:56]} 61. Nd4 {[%emt 0:00:00]} e2 {[%emt 0:00:14]} 62. Nxe2 {[%emt 0:00:00]} Rc8 {[%emt 0:00:45]} 63. Nd4 {[%emt 0:00:00]} Kg4 {[%emt 0:00:34]} 64. Ke5 {[%emt 0:00:00]} Kg3 {[%emt 0:00:32]} 65. Ke4 {[%emt 0:00:00]} Kh2 {[%emt 0:01:12]} 66. Kf3 {[%emt 0:00:00]} Rf8+ {[%emt 0:01:03]} 67. Kg4 {[%emt 0:00:00]} Rg8+ {[%emt 0:00:07]} 68. Kf4 {[%emt 0:00:00]} Rf8+ {[%emt 0:00:15]} 69. Nf5 {[%emt 0:00:01]} Rc8 {[%emt 0:01:29]} 70. Kf3 {[%emt 0:01:19]} Rc7 {[%emt 0:00:34]} 71. Nh6 {[%emt 0:00:39]} Rc3+ {[%emt 0:00:25]} 72. Kf2 {[%emt 0:01:17]} Rc4 {[%emt 0:00:10]} 73. Kf3 {[%emt 0:00:59]} Rc3+ {[%emt 0:00:06]} 74. Ke2 {[%emt 0:00:04]} Rc8 {[%emt 0:00:24]} 75. Nf5 {[%emt 0:00:26]} Kg2 {[%emt 0:02:03]} 76. Ne3+ {[%emt 0:00:37]} Kg3 {[%emt 0:00:22]} 77. Nxc2 {[%emt 0:00:23]} Kh2 {[%emt 0:00:27]} 78. Kd3 {[%emt 0:00:15]} Kg3 {[%emt 0:00:30]} 79. Rf1 {[%emt 0:00:07]} Rd8+ {[%emt 0:00:54]} 80. Nd4 {[%emt 0:00:04]} Rd7 {[%emt 0:00:09]} 81. Rf6 {[%emt 0:00:17]} Rd8 {[%emt 0:00:16]} 82. Ke3 {[%emt 0:00:07]} Re8+ {[%emt 0:01:00]} 83. Ne6 {[%emt 0:00:06]} Ra8 {[%emt 0:00:15]} 84. Rg6+ {[%emt 0:00:04]} Kh2 {[%emt 0:00:13]} 85. Nd4 {[%emt 0:00:32]} Kh3 {[%emt 0:00:53]} 86. Rg5 {[%emt 0:00:26]} Ra3+ {[%emt 0:01:12]} 87. Kf4 {[%emt 0:00:25]} Ra4 {[%emt 0:00:14]} 88. Ke4 {[%emt 0:01:45]} Ra1 {[%emt 0:00:41]} 89. Nf5 {[%emt 0:00:44]} Kh2 {[%emt 0:03:50]} 90. Kf3 {[%emt 0:01:08]} Ra3+ {[%emt 0:01:33]} 91. Ne3 {[%emt 0:00:11]} Rb3 {[%emt 0:00:31]} 92. Ra5 {[%emt 0:00:31]} Rc3 {[%emt 0:00:46]} 1-0